fUST/lending_fUST_20240803
["ID","MTS","AMOUNT","RATE_DAILY","PERIOD"]
[333925857,1722631866102,-946.49,0.00017808,2]
[333925859,1722631866112,-1803.3,0.00017808,2]
[333925861,1722631866122,-609.73,0.00017808,2]
[333925863,1722631866131,-567.13,0.00017808,2]
[333925865,1722631866141,-893.07,0.00017808,2]
[333925867,1722631866150,-748.12,0.00017808,2]
[333925869,1722631866160,-2132.16,0.00017808,2]
[333925871,1722631866170,-1000.0,0.00018,18]
[333925873,1722631866180,-306.464297,0.00018013,2]
[333925875,1722631866189,-153.0,0.00018013,2]
[333925877,1722631866199,-206.9342036,0.00018013,2]
[333925879,1722631866209,-206.9342036,0.00018013,2]
[333925881,1722631866219,-413.4643661,0.00018013,2]
[333925883,1722631866228,-500.0,0.00018082,2]
[333925885,1722631866238,-500.0,0.00018082,2]
[333925887,1722631866248,-500.0,0.00018082,2]
[333925889,1722631866258,-1141.72,0.00018082,2]
[333925891,1722631866267,-772.48,0.00018082,2]
[333925893,1722631866277,-796.65,0.00018082,2]
[333925895,1722631866287,-500.0,0.00018082,2]
[333925897,1722631866297,-500.0,0.00018082,2]
[333925899,1722631866307,-1553.05,0.00018082,2]
[333925901,1722631866317,-504.73,0.00018082,2]
[333925903,1722631866327,-500.0,0.00018082,2]
[333925905,1722631866336,-710.14,0.00018082,2]
[333925907,1722631866345,-500.0,0.00018082,2]
[333925909,1722631866355,-194.3,0.00018082,2]
[333925911,1722631866365,-1672.76,0.00018082,2]
[333925913,1722631866375,-790.43,0.00018082,2]
[333925915,1722631866385,-7707.69,0.00018082,2]
[333925917,1722631866394,-500.0,0.00018082,2]
[333925919,1722631866404,-3211.98,0.00018082,2]
[333925921,1722631866413,-251.93,0.00018082,2]
[333925923,1722631866425,-1248.9,0.00018082,2]
[333925925,1722631866437,-3818.73,0.00018082,2]
[333925927,1722631866448,-757.46,0.00018082,2]
[333925929,1722631866459,-883.3,0.00018082,2]
[333925931,1722631866468,-628.1,0.00018082,2]
[333925933,1722631866478,-1741.27,0.00018082,2]
[333925935,1722631866487,-597.07,0.00018082,2]
[333925937,1722631866497,-606.07,0.00018082,2]
[333925939,1722631866507,-965.72,0.00018082,2]
[333925941,1722631866516,-897.61,0.00018082,2]
[333925943,1722631866525,-2028.03,0.00018082,2]
[333925945,1722631866535,-543.77,0.00018082,2]
[333925947,1722631866545,-893.11,0.00018082,2]
[333925949,1722631866555,-1292.1,0.00018082,2]
[333925951,1722631866565,-978.05,0.00018082,2]
[333925953,1722631866574,-500.0,0.00018082,2]
[333925955,1722631866584,-923.59,0.00018082,2]
[333925957,1722631866593,-1069.9,0.00018082,2]
[333925959,1722631866603,-2779.24,0.00018082,2]
[333925961,1722631866612,-2473.9,0.00018082,2]
[333925963,1722631866622,-1421.45,0.00018082,2]
[333925965,1722631866631,-5199.62,0.00018082,2]
[333925967,1722631866641,-3908.52417698,0.00018082,2]
[333930386,1722632655509,250.30605738,9.999e-05,2]
[333930387,1722632736517,250.30605738,9.999e-05,2]
[333930390,1722632814513,250.30605738,9.999e-05,2]
[333930391,1722632893160,309.47390132,9.999e-05,2]
[333930392,1722632895518,299.28346529,9.999e-05,2]
[333930427,1722633032015,-742.96254014,0.00010777,2]
[333930429,1722633032042,-2021.42155171,0.00010777,2]
[333930431,1722633032054,-2040.88070488,0.00010777,2]
[333930474,1722633038051,-20094.73520327,0.00010777,2]
[333930475,1722633038061,-496.62,0.00010959,2]
[333930476,1722633038070,-250.0,0.00011483,2]
[333930477,1722633038081,-250.0,0.00011514,2]
[333930478,1722633038092,-250.0,0.00011546,2]
[333930479,1722633038102,-250.0,0.00011577,2]
[333930480,1722633038112,-300.0,0.0001158,2]
[333930481,1722633038122,-300.0,0.0001158,2]
[333930482,1722633038131,-250.0,0.00011608,2]
[333930483,1722633038141,-250.0,0.0001164,2]
[333930484,1722633038150,-250.0,0.00011671,2]
[333930485,1722633038160,-250.0,0.00011703,2]
[333930486,1722633038169,-250.0,0.00011734,2]
[333930487,1722633038178,-250.0,0.00011766,2]
[333930488,1722633038188,-250.0,0.00011797,2]
[333930489,1722633038198,-250.0,0.00011829,2]
[333930490,1722633038209,-250.0,0.0001186,2]
[333930491,1722633038218,-250.0,0.00011892,2]
[333930492,1722633038227,-250.0,0.00011923,2]
[333930493,1722633038236,-250.0,0.00011955,2]
[333930494,1722633038248,-250.0,0.00011986,2]
[333930495,1722633038264,-250.0,0.00012018,2]
[333930496,1722633038273,-250.0,0.00012049,2]
[333930497,1722633038282,-250.0,0.00012081,2]
[333930498,1722633038292,-3160.45770161,0.0001212,2]
[333930499,1722633038301,-300.0,0.00012718,2]
[333930500,1722633038310,-420.0,0.00012738,2]
[333930501,1722633038319,-2911.51883243,0.000129,2]
[333930502,1722633038329,-170.458778,0.00012986,2]
[333930503,1722633038339,-588.14,0.00013597,2]
[333930504,1722633038348,-588.14,0.00013597,2]
[333930505,1722633038358,-588.14,0.00013687,2]
[333930506,1722633038368,-998.72036242,0.00013687,2]
[333930507,1722633038378,-47849.221599,0.00013688,2]
[333930508,1722633038387,-588.14,0.00013697,2]
[333930509,1722633038399,-500.0,0.00013698,2]
[333930510,1722633038409,-500.0,0.00013698,2]
[333930511,1722633038418,-500.0,0.00013698,2]
[333930512,1722633038428,-500.0,0.00013698,2]
[333930513,1722633038438,-500.0,0.00013698,2]
[333930514,1722633038448,-500.0,0.00013698,2]
[333930515,1722633038457,-518.48045039,0.00013698,2]
[333930516,1722633038468,-500.0,0.00013698,2]
[333930517,1722633038478,-500.0,0.00013698,2]
[333930518,1722633038487,-500.0,0.00013698,2]
[333930519,1722633038506,-500.0,0.00013698,2]
[333930520,1722633038516,-500.0,0.00013698,2]
[333930521,1722633038526,-500.0,0.00013698,2]
[333930522,1722633038535,-500.0,0.00013698,2]
[333930523,1722633038545,-500.0,0.00013698,2]
[333930524,1722633038559,-500.0,0.00013698,2]
[333930525,1722633038568,-500.0,0.00013698,2]
[333930526,1722633038578,-500.0,0.00013698,2]
[333930527,1722633038588,-500.0,0.00013698,2]
[333930528,1722633038598,-500.0,0.00013698,2]
[333930529,1722633038607,-500.0,0.00013698,2]
[333930530,1722633038618,-500.0,0.00013698,2]
[333930531,1722633038628,-538.00111446,0.00013698,2]
[333930532,1722633038638,-500.0,0.00013698,2]
[333930533,1722633038648,-500.0,0.00013698,2]
[333930534,1722633038658,-584.1,0.00013698,2]
[333930535,1722633038668,-500.0,0.00013698,2]
[333930536,1722633038678,-500.0,0.00013698,2]
[333930537,1722633038688,-500.0,0.00013698,2]
[333930538,1722633038698,-500.0,0.00013698,2]
[333930539,1722633038707,-500.0,0.00013698,2]
[333930540,1722633038717,-500.0,0.00013698,2]
[333930541,1722633038727,-272.89653633,0.00013698,2]
[333930542,1722633038736,-500.0,0.00013698,2]
[333930543,1722633038750,-500.0,0.00013698,2]
[333930544,1722633038760,-500.0,0.00013698,2]
[333930545,1722633038770,-500.0,0.00013698,2]
[333930546,1722633038780,-500.0,0.00013698,2]
[333930547,1722633038791,-500.0,0.00013698,2]
[333930548,1722633038801,-500.0,0.00013698,2]
[333930549,1722633038812,-500.0,0.00013698,2]
[333930550,1722633038821,-500.0,0.00013698,2]
[333930551,1722633038831,-500.0,0.00013698,2]
[333930552,1722633038840,-500.0,0.00013698,2]
[333930553,1722633038850,-500.0,0.00013698,2]
[333930554,1722633038861,-500.0,0.00013698,2]
[333930555,1722633038871,-500.0,0.00013698,2]
[333930556,1722633038881,-500.0,0.00013698,2]
[333930557,1722633038891,-500.0,0.00013698,2]
[333930558,1722633038900,-500.0,0.00013698,2]
[333930559,1722633038910,-500.0,0.00013698,2]
[333930560,1722633038919,-500.0,0.00013698,2]
[333930561,1722633038929,-500.0,0.00013698,2]
[333930562,1722633038938,-500.0,0.00013698,2]
[333930563,1722633038948,-500.0,0.00013698,2]
[333930564,1722633038959,-500.0,0.00013698,2]
[333930565,1722633038969,-500.0,0.00013698,2]
[333930566,1722633038978,-500.0,0.00013698,2]
[333930567,1722633038988,-500.0,0.00013698,2]
[333930568,1722633039000,-500.0,0.00013698,2]
[333930569,1722633039012,-500.0,0.00013698,2]
[333930570,1722633039028,-500.0,0.00013698,2]
[333930571,1722633039042,-500.0,0.00013698,2]
[333930572,1722633039052,-500.0,0.00013698,2]
[333930573,1722633039061,-500.0,0.00013698,2]
[333930574,1722633039071,-725.53,0.00013698,2]
[333930575,1722633039082,-500.0,0.00013698,2]
[333930576,1722633039091,-500.0,0.00013698,2]
[333930577,1722633039101,-500.0,0.00013698,2]
[333930578,1722633039113,-500.0,0.00013698,2]
[333930579,1722633039123,-504.19481892,0.00013698,2]
[333930580,1722633039133,-500.0,0.00013698,2]
[333930581,1722633039143,-500.0,0.00013698,2]
[333930582,1722633039152,-500.0,0.00013698,2]
[333930583,1722633039162,-500.0,0.00013698,2]
[333930584,1722633039171,-500.0,0.00013698,2]
[333930585,1722633039181,-500.0,0.00013698,2]
[333930586,1722633039190,-500.0,0.00013698,2]
[333930587,1722633039200,-500.0,0.00013698,2]
[333930588,1722633039210,-500.0,0.00013698,2]
[333930589,1722633039220,-500.0,0.00013698,2]
[333930590,1722633039229,-500.0,0.00013698,2]
[333930591,1722633039239,-500.0,0.00013698,2]
[333930592,1722633039250,-3453.04,0.00013698,2]
[333930593,1722633039259,-500.0,0.00013698,2]
[333930594,1722633039269,-500.0,0.00013698,2]
[333930595,1722633039279,-439.49389548,0.00013698,2]
[333930596,1722633039288,-1646.77,0.00013698,2]
[333930597,1722633039299,-173.97566652,0.00013698,2]
[333930598,1722633039308,-500.0,0.00013698,2]
[333930599,1722633039317,-500.0,0.00013698,2]
[333930600,1722633039327,-500.0,0.00013698,2]
[333930601,1722633039337,-500.0,0.00013698,2]
[333930602,1722633039347,-579.57,0.00013698,2]
[333930603,1722633039356,-582.4,0.00013698,2]
[333930604,1722633039455,-500.0,0.00013698,2]
[333930605,1722633039465,-528.32,0.00013698,2]
[333930606,1722633039475,-500.0,0.00013698,2]
[333930607,1722633039485,-500.0,0.00013698,2]
[333930609,1722633039497,-835.9,0.00013698,2]
[333930610,1722633039508,-500.0,0.00013698,2]
[333930611,1722633039518,-500.0,0.00013698,2]
[333930612,1722633039528,-500.0,0.00013698,2]
[333930613,1722633039537,-585.79,0.00013698,2]
[333930614,1722633039546,-500.0,0.00013698,2]
[333930615,1722633039556,-500.0,0.00013698,2]
[333930616,1722633039565,-500.0,0.00013698,2]
[333930617,1722633039575,-500.0,0.00013698,2]
[333930618,1722633039584,-500.0,0.00013698,2]
[333930620,1722633039594,-2382.64,0.00013698,2]
[333930622,1722633039603,-1838.53,0.00013698,2]
[333930623,1722633039613,-500.0,0.00013698,2]
[333930625,1722633039622,-500.0,0.00013698,2]
[333930628,1722633039632,-500.0,0.00013698,2]
[333930630,1722633039642,-500.0,0.00013698,2]
[333930632,1722633039651,-500.0,0.00013698,2]
[333930634,1722633039661,-500.0,0.00013698,2]
[333930636,1722633039671,-500.0,0.00013698,2]
[333930639,1722633039681,-500.0,0.00013698,2]
[333930641,1722633039691,-500.0,0.00013698,2]
[333930644,1722633039701,-500.0,0.00013698,2]
[333930645,1722633039710,-500.0,0.00013698,2]
[333930647,1722633039720,-500.0,0.00013698,2]
[333930649,1722633039730,-500.0,0.00013698,2]
[333930651,1722633039740,-500.0,0.00013698,2]
[333930653,1722633039752,-512.56776529,0.00013698,2]
[333930656,1722633039762,-500.0,0.00013698,2]
[333930658,1722633039772,-898.97,0.00013698,2]
[333930659,1722633039781,-500.0,0.00013698,2]
[333930660,1722633039791,-500.0,0.00013698,2]
[333930661,1722633039802,-500.0,0.00013698,2]
[333930662,1722633039812,-500.0,0.00013698,2]
[333930663,1722633039821,-500.0,0.00013698,2]
[333930664,1722633039830,-500.0,0.00013698,2]
[333930665,1722633039840,-523.51,0.00013698,2]
[333930666,1722633039851,-500.0,0.00013698,2]
[333930667,1722633039861,-500.0,0.00013698,2]
[333930668,1722633039871,-552.87,0.00013698,2]
[333930669,1722633039882,-500.0,0.00013698,2]
[333930670,1722633039892,-500.0,0.00013698,2]
[333930671,1722633039902,-500.0,0.00013698,2]
[333930672,1722633039912,-1426.15,0.00013698,2]
[333930673,1722633039921,-500.0,0.00013698,2]
[333930674,1722633039931,-500.0,0.00013698,2]
[333930675,1722633039941,-500.0,0.00013698,2]
[333930676,1722633039950,-561.77,0.00013698,2]
[333930677,1722633039960,-500.0,0.00013698,2]
[333930678,1722633039970,-1079.83,0.00013698,2]
[333930679,1722633039980,-500.0,0.00013698,2]
[333930680,1722633039990,-500.0,0.00013698,2]
[333930681,1722633040002,-500.0,0.00013698,2]
[333930682,1722633040012,-500.0,0.00013698,2]
[333930683,1722633040022,-500.0,0.00013698,2]
[333930684,1722633040033,-500.0,0.00013698,2]
[333930685,1722633040047,-500.0,0.00013698,2]
[333930686,1722633040056,-500.0,0.00013698,2]
[333930687,1722633040067,-500.0,0.00013698,2]
[333930688,1722633040077,-500.0,0.00013698,2]
[333930689,1722633040087,-500.0,0.00013698,2]
[333930690,1722633040096,-500.0,0.00013698,2]
[333930691,1722633040106,-500.0,0.00013698,2]
[333930692,1722633040118,-500.0,0.00013698,2]
[333930693,1722633040127,-500.0,0.00013698,2]
[333930694,1722633040137,-500.0,0.00013698,2]
[333930695,1722633040147,-500.0,0.00013698,2]
[333930696,1722633040156,-500.0,0.00013698,2]
[333930697,1722633040166,-500.0,0.00013698,2]
[333930698,1722633040175,-500.0,0.00013698,2]
[333930699,1722633040185,-2704.57,0.00013698,2]
[333930700,1722633040194,-500.0,0.00013698,2]
[333930701,1722633040204,-556.87317608,0.00013698,2]
[333930702,1722633040213,-500.0,0.00013698,2]
[333930703,1722633040221,-809.4,0.00013698,2]
[333930704,1722633040231,-685.56,0.00013698,2]
[333930705,1722633040240,-500.0,0.00013698,2]
[333930706,1722633040252,-776.06,0.00013698,2]
[333930707,1722633040262,-511.69,0.00013698,2]
[333930708,1722633040271,-500.0,0.00013698,2]
[333930709,1722633040280,-500.0,0.00013698,2]
[333930710,1722633040291,-483.2818549,0.00013698,2]
[333930711,1722633040301,-500.0,0.00013698,2]
[333930713,1722633040311,-500.0,0.00013698,2]
[333930715,1722633040323,-558.15,0.00013698,2]
[333930717,1722633040332,-500.0,0.00013698,2]
[333930719,1722633040342,-965.4,0.00013698,2]
[333930720,1722633040351,-500.0,0.00013698,2]
[333930721,1722633040361,-500.0,0.00013698,2]
[333930722,1722633040371,-387.91116508,0.00013698,2]
[333930723,1722633040380,-500.0,0.00013698,2]
[333930724,1722633040390,-500.0,0.00013698,2]
[333930725,1722633040399,-500.0,0.00013698,2]
[333930726,1722633040409,-500.0,0.00013698,2]
[333930727,1722633040419,-500.0,0.00013698,2]
[333930728,1722633040429,-500.0,0.00013698,2]
[333930729,1722633040439,-505.24,0.00013698,2]
[333930730,1722633040449,-500.0,0.00013698,2]
[333930731,1722633040459,-500.0,0.00013698,2]
[333930732,1722633040469,-500.0,0.00013698,2]
[333930733,1722633040478,-500.0,0.00013698,2]
[333930734,1722633040489,-500.0,0.00013698,2]
[333930735,1722633040499,-500.0,0.00013698,2]
[333930736,1722633040509,-715.48,0.00013698,2]
[333930737,1722633040518,-688.51,0.00013698,2]
[333930739,1722633040528,-1090.41,0.00013698,2]
[333930741,1722633040538,-903.04,0.00013698,2]
[333930743,1722633040548,-500.0,0.00013698,2]
[333930744,1722633040559,-500.0,0.00013698,2]
[333930745,1722633040569,-500.0,0.00013698,2]
[333930747,1722633040579,-500.0,0.00013698,2]
[333930749,1722633040588,-500.0,0.00013698,2]
[333930751,1722633040598,-500.0,0.00013698,2]
[333930753,1722633040608,-500.0,0.00013698,2]
[333930755,1722633040618,-500.0,0.00013698,2]
[333930756,1722633040627,-500.0,0.00013698,2]
[333930758,1722633040637,-500.0,0.00013698,2]
[333930760,1722633040647,-212.288096,0.00013699,2]
[333930761,1722633040657,-150.112233,0.000137,2]
[333930762,1722633040667,-150.112233,0.000137,2]
[333930763,1722633040678,-1410.0,0.00013899,2]
[333930765,1722633040688,-150.112233,0.000139,2]
[333930767,1722633040697,-588.14,0.0001396,2]
[333930768,1722633040707,-47849.221599,0.00013962,2]
[333930770,1722633040717,-588.14,0.00013971,2]
[333930771,1722633040727,-500.0,0.00013972,2]
[333930772,1722633040737,-577.08806387,0.00013972,2]
[333930773,1722633040749,-500.0,0.00013972,2]
[333930774,1722633040761,-500.0,0.00013972,2]
[333930775,1722633040771,-500.0,0.00013972,2]
[333930776,1722633040781,-500.0,0.00013972,2]
[333930777,1722633040791,-500.0,0.00013972,2]
[333930778,1722633040801,-500.0,0.00013972,2]
[333930779,1722633040811,-500.0,0.00013972,2]
[333930780,1722633040821,-500.0,0.00013972,2]
[333930781,1722633040831,-500.0,0.00013972,2]
[333930782,1722633040840,-500.0,0.00013972,2]
[333930783,1722633040850,-500.0,0.00013972,2]
[333930784,1722633040859,-500.0,0.00013972,2]
[333930785,1722633040868,-500.0,0.00013972,2]
[333930786,1722633040878,-500.0,0.00013972,2]
[333930787,1722633040888,-500.0,0.00013972,2]
[333930788,1722633040898,-500.0,0.00013972,2]
[333930789,1722633040907,-500.0,0.00013972,2]
[333930790,1722633040916,-500.0,0.00013972,2]
[333930791,1722633040926,-500.0,0.00013972,2]
[333930792,1722633040935,-584.1,0.00013972,2]
[333930793,1722633040945,-500.0,0.00013972,2]
[333930794,1722633040954,-500.0,0.00013972,2]
[333930795,1722633040964,-500.0,0.00013972,2]
[333930796,1722633040974,-223.54715243,0.00013972,2]
[333930797,1722633040984,-500.0,0.00013972,2]
[333930798,1722633040993,-500.0,0.00013972,2]
[333930799,1722633041010,-500.0,0.00013972,2]
[333930800,1722633041020,-500.0,0.00013972,2]
[333930801,1722633041029,-500.0,0.00013972,2]
[333930802,1722633041042,-500.0,0.00013972,2]
[333930803,1722633041051,-203.765182,0.00013972,2]
[333930804,1722633041061,-500.0,0.00013972,2]
[333930805,1722633041070,-500.0,0.00013972,2]
[333930806,1722633041081,-500.0,0.00013972,2]
[333930807,1722633041091,-500.0,0.00013972,2]
[333930808,1722633041102,-500.0,0.00013972,2]
[333930809,1722633041111,-500.0,0.00013972,2]
[333930810,1722633041122,-500.0,0.00013972,2]
[333930811,1722633041132,-500.0,0.00013972,2]
[333930812,1722633041142,-500.0,0.00013972,2]
[333930813,1722633041152,-500.0,0.00013972,2]
[333930814,1722633041162,-500.0,0.00013972,2]
[333930815,1722633041171,-500.0,0.00013972,2]
[333930816,1722633041181,-500.0,0.00013972,2]
[333930817,1722633041191,-500.0,0.00013972,2]
[333930818,1722633041201,-500.0,0.00013972,2]
[333930819,1722633041211,-500.0,0.00013972,2]
[333930820,1722633041221,-500.0,0.00013972,2]
[333930821,1722633041231,-725.53,0.00013972,2]
[333930822,1722633041240,-500.0,0.00013972,2]
[333930823,1722633041251,-500.0,0.00013972,2]
[333930824,1722633041260,-500.0,0.00013972,2]
[333930825,1722633041270,-455.6842782,0.00013972,2]
[333930826,1722633041280,-500.0,0.00013972,2]
[333930827,1722633041290,-500.0,0.00013972,2]
[333930828,1722633041300,-500.0,0.00013972,2]
[333930829,1722633041310,-500.0,0.00013972,2]
[333930830,1722633041320,-165.21775422,0.00013972,2]
[333930831,1722633041330,-175.34251172,0.00013972,2]
[333930832,1722633041340,-500.0,0.00013972,2]
[333930833,1722633041349,-500.0,0.00013972,2]
[333930834,1722633041359,-500.0,0.00013972,2]
[333930835,1722633041368,-500.0,0.00013972,2]
[333930836,1722633041378,-500.0,0.00013972,2]
[333930837,1722633041387,-3453.04,0.00013972,2]
[333930838,1722633041397,-500.0,0.00013972,2]
[333930839,1722633041406,-500.0,0.00013972,2]
[333930840,1722633041416,-1646.77,0.00013972,2]
[333930841,1722633041425,-500.0,0.00013972,2]
[333930842,1722633041435,-500.0,0.00013972,2]
[333930843,1722633041445,-500.0,0.00013972,2]
[333930844,1722633041454,-500.0,0.00013972,2]
[333930845,1722633041464,-579.57,0.00013972,2]
[333930846,1722633041474,-582.4,0.00013972,2]
[333930847,1722633041483,-500.0,0.00013972,2]
[333930848,1722633041493,-528.32,0.00013972,2]
[333930849,1722633041512,-500.0,0.00013972,2]
[333930850,1722633041524,-835.9,0.00013972,2]
[333930851,1722633041625,-500.0,0.00013972,2]
[333930852,1722633041636,-500.0,0.00013972,2]
[333930853,1722633041646,-500.0,0.00013972,2]
[333930854,1722633041656,-585.79,0.00013972,2]
[333930855,1722633041665,-500.0,0.00013972,2]
[333930856,1722633041676,-500.0,0.00013972,2]
[333930857,1722633041686,-500.0,0.00013972,2]
[333930858,1722633041696,-500.0,0.00013972,2]
[333930859,1722633041705,-500.0,0.00013972,2]
[333930860,1722633041715,-2382.64,0.00013972,2]
[333930861,1722633041726,-1838.53,0.00013972,2]
[333930862,1722633041736,-500.0,0.00013972,2]
[333930863,1722633041749,-500.0,0.00013972,2]
[333930864,1722633041760,-500.0,0.00013972,2]
[333930865,1722633041769,-500.0,0.00013972,2]
[333930866,1722633041779,-500.0,0.00013972,2]
[333930867,1722633041788,-500.0,0.00013972,2]
[333930868,1722633041797,-500.0,0.00013972,2]
[333930869,1722633041806,-500.0,0.00013972,2]
[333930870,1722633041816,-500.0,0.00013972,2]
[333930871,1722633041826,-500.0,0.00013972,2]
[333930872,1722633041836,-500.0,0.00013972,2]
[333930873,1722633041846,-500.0,0.00013972,2]
[333930874,1722633041855,-500.0,0.00013972,2]
[333930875,1722633041865,-500.0,0.00013972,2]
[333930876,1722633041875,-898.97,0.00013972,2]
[333930877,1722633041884,-500.0,0.00013972,2]
[333930878,1722633041894,-500.0,0.00013972,2]
[333930879,1722633041904,-500.0,0.00013972,2]
[333930880,1722633041914,-500.0,0.00013972,2]
[333930881,1722633041923,-523.51,0.00013972,2]
[333930882,1722633041933,-500.0,0.00013972,2]
[333930883,1722633041942,-500.0,0.00013972,2]
[333930884,1722633041952,-552.87,0.00013972,2]
[333930885,1722633041962,-500.0,0.00013972,2]
[333930886,1722633041972,-500.0,0.00013972,2]
[333930887,1722633041981,-500.0,0.00013972,2]
[333930888,1722633041991,-1426.15,0.00013972,2]
[333930889,1722633042004,-189.08406,0.00013972,2]
[333930890,1722633042014,-561.77,0.00013972,2]
[333930891,1722633042023,-500.0,0.00013972,2]
[333930892,1722633042037,-1079.83,0.00013972,2]
[333930893,1722633042046,-500.0,0.00013972,2]
[333930894,1722633042055,-500.0,0.00013972,2]
[333930895,1722633042064,-500.0,0.00013972,2]
[333930896,1722633042074,-500.0,0.00013972,2]
[333930897,1722633042085,-500.0,0.00013972,2]
[333930898,1722633042094,-500.0,0.00013972,2]
[333930899,1722633042104,-500.0,0.00013972,2]
[333930900,1722633042116,-500.0,0.00013972,2]
[333930901,1722633042126,-500.0,0.00013972,2]
[333930902,1722633042135,-500.0,0.00013972,2]
[333930903,1722633042144,-500.0,0.00013972,2]
[333930904,1722633042154,-500.0,0.00013972,2]
[333930905,1722633042163,-500.0,0.00013972,2]
[333930906,1722633042172,-500.0,0.00013972,2]
[333930907,1722633042182,-500.0,0.00013972,2]
[333930908,1722633042192,-500.0,0.00013972,2]
[333930909,1722633042202,-2704.57,0.00013972,2]
[333930910,1722633042212,-500.0,0.00013972,2]
[333930911,1722633042222,-809.4,0.00013972,2]
[333930912,1722633042231,-500.0,0.00013972,2]
[333930913,1722633042241,-685.56,0.00013972,2]
[333930914,1722633042254,-776.06,0.00013972,2]
[333930915,1722633042264,-511.69,0.00013972,2]
[333930916,1722633042273,-500.0,0.00013972,2]
[333930917,1722633042282,-500.0,0.00013972,2]
[333930918,1722633042292,-500.0,0.00013972,2]
[333930919,1722633042301,-558.15,0.00013972,2]
[333930920,1722633042310,-500.0,0.00013972,2]
[333930921,1722633042319,-965.4,0.00013972,2]
[333930922,1722633042328,-500.0,0.00013972,2]
[333930923,1722633042337,-500.0,0.00013972,2]
[333930924,1722633042347,-500.0,0.00013972,2]
[333930925,1722633042357,-500.0,0.00013972,2]
[333930926,1722633042367,-500.0,0.00013972,2]
[333930927,1722633042376,-500.0,0.00013972,2]
[333930928,1722633042386,-500.0,0.00013972,2]
[333930929,1722633042395,-505.24,0.00013972,2]
[333930930,1722633042404,-500.0,0.00013972,2]
[333930931,1722633042413,-500.0,0.00013972,2]
[333930932,1722633042422,-500.0,0.00013972,2]
[333930933,1722633042431,-500.0,0.00013972,2]
[333930934,1722633042441,-715.48,0.00013972,2]
[333930935,1722633042450,-688.51,0.00013972,2]
[333930936,1722633042459,-1090.41,0.00013972,2]
[333930937,1722633042468,-500.0,0.00013972,2]
[333930938,1722633042477,-903.04,0.00013972,2]
[333930940,1722633042487,-500.0,0.00013972,2]
[333930942,1722633042499,-500.0,0.00013972,2]
[333930944,1722633042508,-500.0,0.00013972,2]
[333930945,1722633042518,-500.0,0.00013972,2]
[333930947,1722633042527,-500.0,0.00013972,2]
[333930948,1722633042536,-500.0,0.00013972,2]
[333930950,1722633042546,-500.0,0.00013972,2]
[333930951,1722633042555,-587.0,0.00014012,2]
[333930952,1722633042565,-500.0,0.00014136,2]
[333930953,1722633042575,-314.9373224,0.00014136,2]